bitfinex-derivatives/quotes_SOLF0:USTF0_20241024
["timestamp","ask_amount","ask_price","bid_price","bid_amount"]
[1729783234478,2.8255,177.11,177.03,7.5748]
[1729783234479,21.74696615,177.15,177.03,11.5883]
[1729783234676,2.2901,177.14,177.03,11.5883]
[1729783234874,2.8257,177.1,177.03,11.5883]
[1729783235075,2.2901,177.14,177.03,11.5883]
[1729783235470,2.2901,177.14,177.02,21.74696615]
[1729783235672,21.74696615,177.12,177.01,9.26]
[1729783236274,2.8261,177.07,177.01,9.26]
[1729783236477,2.2901,177.14,177.01,9.26]
[1729783237383,2.2901,177.14,177.02,21.74696615]
[1729783237883,2.8257,177.1,177.02,24.57376615]
[1729783238078,2.2901,177.14,177.02,21.74696615]
[1729783238380,2.8254,177.12,177.05,24.57326615]
[1729783238585,4.689,177.17,177.05,21.74696615]
[1729783238882,4.689,177.17,177.07,21.74696615]
[1729783239081,2.8249,177.15,177.08,12.0858]
[1729783239384,2.8249,177.15,177.08,11.6326]
[1729783239779,2.8245,177.18,177.1,21.74696615]
[1729783239973,2.8245,177.18,177.11,9.26]
[1729783240177,2.2379,177.23,177.11,12.0854]
[1729783240582,2.8243,177.18,177.11,9.26]
[1729783240781,2.8243,177.18,177.12,2.8252]
[1729783240986,2.2379,177.23,177.11,9.26]
[1729783241179,2.8247,177.16,177.11,9.26]
[1729783241377,2.8247,177.16,177.11,12.0854]
[1729783241580,2.8247,177.16,177.11,9.26]
[1729783241982,2.8252,177.13,177.1,31.00696615]
[1729783242183,21.74696615,177.21,177.07,21.74696615]
[1729783242378,9.26,177.22,177.05,9.26]
[1729783242379,21.74696615,177.18,177.05,9.26]
[1729783242585,21.74696615,177.15,177.05,9.26]
[1729783242992,2.4435,177.14,177.02,2.4266]
[1729783243292,2.8263,177.06,177.02,2.4266]
[1729783243586,2.4435,177.14,177.02,2.4266]
[1729783243793,2.8257,177.1,177.04,2.8265]
[1729783243986,2.4435,177.14,177.04,24.57346615]
[1729783244192,2.8255,177.11,177.06,2.8262]
[1729783244486,2.3037,177.17,177.04,21.74696615]
[1729783244880,2.8253,177.12,177.06,2.8261]
[1729783245084,2.8253,177.12,177.04,21.74696615]
[1729783245285,2.3037,177.17,177.07,21.74696615]
[1729783245489,2.8253,177.13,177.08,2.8258]
[1729783245694,2.8253,177.13,177.08,12.0858]
[1729783245990,2.8253,177.12,177.08,12.0858]
[1729783246187,2.3037,177.17,177.08,9.26]
[1729783246691,2.3858,177.19,177.08,9.26]
[1729783247096,2.8256,177.11,177.08,9.26]
[1729783247284,2.3858,177.19,177.08,9.26]
[1729783247987,2.8256,177.11,177.08,9.26]
[1729783248186,2.3858,177.19,177.03,2.2367]
[1729783248187,24.13276615,177.19,177.05,21.74696615]
[1729783248385,2.8252,177.13,177.04,8.9]
[1729783248691,21.74696615,177.16,177.04,8.9]
[1729783248894,2.8262,177.07,177.04,8.9]
[1729783249597,21.74696615,177.16,177.04,8.9]
[1729783249808,2.8258,177.09,177.05,2.8264]
[1729783250297,2.826,177.08,177.04,11.7266]
[1729783250490,21.74696615,177.16,177.04,11.7266]
[1729783250994,2.826,177.08,177.04,11.7266]
[1729783251192,21.74696615,177.16,177.04,8.9]
[1729783251786,21.74696615,177.16,177.04,11.7264]
[1729783251994,2.3858,177.19,177.04,11.7264]
[1729783251995,24.13276615,177.19,177.04,30.64696615]
[1729783252298,24.13276615,177.19,177.04,24.57346615]
[1729783252490,21.74696615,177.16,177.02,2.4266]
[1729783252995,2.8265,177.05,177.02,2.4266]
[1729783253195,21.74696615,177.14,177.02,2.4266]
[1729783253393,2.3702,177.13,177.02,2.4266]
[1729783253607,2.8265,177.05,177.02,2.4266]
[1729783253902,2.3702,177.13,177.02,2.4266]
[1729783254083,2.8265,177.05,177.02,2.4266]
[1729783254384,2.3702,177.13,177.02,2.4266]
[1729783254588,2.8266,177.04,177.02,2.4266]
[1729783257193,2.8267,177.03,177.02,2.4266]
[1729783258292,21.74696615,177.11,176.96,24.05246615]
[1729783258490,2.8273,177.0,176.97,11.3677]
[1729783259797,4.7176,177.1,176.97,8.54]
[1729783260004,21.74696615,177.08,176.96,21.74696615]
[1729783260204,21.74696615,177.08,176.96,8.54]
[1729783260606,4.7176,177.1,176.96,30.28696615]
[1729783261001,4.7176,177.1,176.97,2.8276]
[1729783261002,2.8272,177.01,176.97,2.8276]
[1729783261199,4.7176,177.1,176.97,2.8276]
[1729783261402,2.8277,176.97,176.96,30.28696615]
[1729783261710,5.6524,177.07,176.94,4.6525]
[1729783262004,21.74696615,177.08,176.94,2.3533]
[1729783262208,21.74696615,177.05,176.94,10.8933]
[1729783262507,2.4684,177.04,176.94,10.8933]
[1729783262708,2.4684,177.04,176.94,2.3533]
[1729783262907,2.4684,177.04,176.92,11.3685]
[1729783263300,2.828,176.96,176.92,11.3685]
[1729783263906,2.8281,176.95,176.92,8.54]
[1729783264805,2.8282,176.94,176.92,8.54]
[1729783265397,2.4684,177.04,176.92,8.54]
[1729783265603,2.4684,177.04,176.9,85.27546615]
[1729783265604,2.8285,176.92,176.9,85.27546615]
[1729783266705,4.7223,177.01,176.9,85.27546615]
[1729783266897,5.6545,177.0,176.89,8.56]
[1729783267097,5.6545,177.0,176.85,21.74696615]
[1729783267098,21.74696615,177.0,176.85,21.74696615]
[1729783267303,2.8293,176.88,176.85,21.74696615]
[1729783267605,14.2149,176.99,176.85,21.74696615]
[1729783268101,2.8291,176.89,176.85,24.57656615]
[1729783268702,2.8294,176.87,176.83,2.8298]
[1729783268898,21.74696615,176.94,176.82,29.94696615]
[1729783269111,2.4499,176.93,176.82,8.2]
[1729783269507,2.8296,176.86,176.82,8.2]
[1729783269808,4.8373,176.92,176.82,8.2]
[1729783269998,4.8373,176.92,176.79,29.94696615]
[1729783270207,21.74696615,176.89,176.74,7.4667]
[1729783270509,2.8297,176.85,176.74,18.4979]
[1729783270708,21.74696615,176.89,176.76,21.74696615]
[1729783270900,4.8373,176.92,176.78,21.74696615]
[1729783271103,4.8373,176.92,176.81,21.74696615]
[1729783271304,2.8294,176.87,176.81,21.74696615]
[1729783271506,4.8373,176.92,176.81,21.74696615]
[1729783271706,4.8373,176.92,176.85,2.8295]
[1729783271707,2.8289,176.9,176.85,2.8295]
[1729783271902,4.8373,176.92,176.81,21.74696615]
[1729783272507,2.8292,176.88,176.81,21.74696615]
[1729783273309,4.8373,176.92,176.81,21.74696615]
[1729783273905,4.8373,176.92,176.81,24.57706615]
[1729783274107,2.8299,176.84,176.81,21.74696615]
[1729783274505,2.8299,176.84,176.8,8.2]
[1729783274506,26.58426615,176.92,176.78,21.74696615]
[1729783275209,2.83,176.83,176.79,2.8306]
[1729783275714,2.8292,176.88,176.78,24.57766615]
[1729783275916,8.2,176.91,176.78,21.74696615]
[1729783276210,2.8299,176.83,176.79,2.8305]
[1729783276815,2.8298,176.84,176.8,2.8304]
[1729783277207,8.2,176.91,176.78,21.74696615]
[1729783278010,2.8304,176.8,176.78,21.74696615]
[1729783278417,21.74696615,176.89,176.75,21.74696615]
[1729783278714,2.8308,176.78,176.75,21.74696615]
[1729783279723,21.74696615,176.89,176.75,21.74696615]
[1729783280016,21.74696615,176.87,176.74,15.6667]
[1729783280220,21.74696615,176.87,176.74,8.2]
[1729783280416,2.8312,176.75,176.74,8.2]
[1729783281013,7.0283,176.83,176.7,7.86]
[1729783281014,21.74696615,176.81,176.7,7.86]
[1729783281522,21.74696615,176.78,176.66,7.86]
[1729783281817,21.74696615,176.75,176.61,29.60696615]
[1729783282022,2.8326,176.67,176.61,32.44026615]
[1729783282509,2.833,176.65,176.61,29.60696615]
[1729783283217,7.0283,176.74,176.58,21.74696615]
[1729783283218,2.8333,176.62,176.58,21.74696615]
[1729783283520,7.0283,176.74,176.61,21.74696615]
[1729783283816,7.0283,176.74,176.64,21.74696615]
[1729783284610,7.0283,176.74,176.66,2.8326]
[1729783284814,7.86,176.79,176.67,21.74696615]
[1729783285019,2.8309,176.77,176.67,21.74696615]
[1729783285227,7.86,176.81,176.71,2.8318]
[1729783285428,7.86,176.81,176.69,21.74696615]
[1729783285919,7.3046,176.83,176.72,21.74696615]
[1729783286420,2.831,176.77,176.72,2.8316]
[1729783286624,7.3046,176.83,176.71,7.86]
[1729783288319,2.8314,176.74,176.71,7.86]
[1729783289022,10.11819972,176.83,176.71,7.86]
[1729783289225,7.86,176.82,176.71,7.86]
[1729783289811,2.8316,176.73,176.71,7.86]
[1729783291310,2.8317,176.72,176.71,7.86]
[1729783291922,21.74696615,176.81,176.66,10.6925]
[1729783292218,21.74696615,176.81,176.66,2.8325]
[1729783292427,21.74696615,176.81,176.65,34.54646615]
[1729783292615,21.74696615,176.78,176.62,21.74696615]
[1729783292815,21.74696615,176.75,176.63,7.86]
[1729783293013,7.4046,176.74,176.63,7.86]
[1729783293214,7.4046,176.74,176.6,24.20716615]
[1729783293413,7.4046,176.74,176.6,32.06716615]
[1729783293816,2.832,176.7,176.6,34.90076615]
[1729783294022,21.74696615,176.73,176.6,34.90076615]
[1729783294225,21.74696615,176.73,176.6,32.44056615]
[1729783294615,2.8323,176.69,176.58,7.86]
[1729783294814,21.74696615,176.7,176.57,21.74696615]
[1729783295029,29.60696615,176.7,176.57,21.74696615]
[1729783295723,2.8338,176.59,176.57,21.74696615]
[1729783296233,2.8339,176.59,176.56,7.86]
[1729783296818,21.74696615,176.67,176.56,7.86]
[1729783297416,2.8339,176.59,176.56,7.86]
[1729783298726,2.833,176.64,176.56,7.86]
[1729783298928,7.86,176.7,176.56,29.60696615]
[1729783299131,7.86,176.7,176.59,21.74696615]
[1729783299730,21.74696615,176.72,176.62,2.8332]
[1729783299930,21.74696615,176.72,176.59,21.74696615]
[1729783300430,2.8323,176.69,176.61,2.8334]
[1729783300628,21.74696615,176.72,176.61,2.8334]
[1729783301626,2.8328,176.66,176.61,2.8334]
[1729783302130,2.8324,176.68,176.65,21.74696615]
[1729783302327,7.4046,176.74,176.65,21.74696615]
[1729783302724,2.8322,176.69,176.65,24.57976615]
[1729783302927,7.4046,176.74,176.65,21.74696615]
[1729783303926,2.8325,176.68,176.65,21.74696615]
[1729783305332,2.8318,176.72,176.65,24.57966615]
[1729783305529,2.3583,176.74,176.65,21.74696615]
[1729783305733,2.4416,176.78,176.67,21.74696615]
[1729783305935,2.8318,176.72,176.68,2.8322]
[1729783306233,5.6618,176.77,176.65,21.74696615]
[1729783306636,2.8327,176.66,176.65,21.74696615]
[1729783306839,5.6618,176.77,176.65,21.74696615]
[1729783307536,2.8326,176.67,176.64,7.5]
[1729783308027,24.18856615,176.78,176.64,7.5]
[1729783308233,24.18856615,176.78,176.65,21.74696615]
[1729783309238,2.8324,176.68,176.65,21.74696615]
[1729783309639,24.18856615,176.78,176.65,21.74696615]
[1729783309640,2.4416,176.78,176.65,21.74696615]
[1729783309833,2.4416,176.78,176.68,2.8323]
[1729783310335,2.4416,176.78,176.65,21.74696615]
[1729783310542,2.4416,176.78,176.67,2.8325]
[1729783310543,2.832,176.71,176.67,2.8325]
[1729783310837,2.4416,176.78,176.65,21.74696615]
[1729783311032,2.8314,176.75,176.66,2.8325]
[1729783311234,2.4416,176.78,176.66,2.8325]
[1729783312238,2.832,176.7,176.66,2.8325]
[1729783312630,29.85016615,176.78,176.65,21.74696615]
[1729783312835,2.8322,176.69,176.65,21.74696615]
[1729783313137,2.4416,176.78,176.67,2.8324]
[1729783313538,2.8313,176.75,176.67,2.8324]
[1729783313832,2.4416,176.78,176.69,2.8321]
[1729783314039,2.8317,176.72,176.69,2.8321]
[1729783316639,2.8316,176.73,176.7,2.832]
[1729783316829,2.8316,176.73,176.68,21.74680094]
[1729783317336,2.8316,176.73,176.69,2.8321]
[1729783317528,2.8317,176.72,176.7,7.18]
[1729783317733,2.4416,176.78,176.7,7.18]
[1729783318041,2.8318,176.72,176.7,7.18]
[1729783319444,5.6619,176.77,176.66,7.18]
[1729783320336,2.4416,176.78,176.66,7.18]
[1729783322233,2.8313,176.75,176.67,2.8323]
[1729783322436,2.4416,176.78,176.67,2.8323]
[1729783322839,2.8319,176.71,176.67,2.8323]
[1729783323142,2.8319,176.71,176.68,2.8323]
[1729783323836,2.4416,176.78,176.68,21.74680094]
[1729783324140,2.3741,176.8,176.71,21.74680094]
[1729783324343,2.4271,176.84,176.74,21.74415662]
[1729783324637,7.3369,176.84,176.72,6.84]
[1729783325044,13.59180806,176.81,176.72,6.84]
[1729783325245,2.8314,176.74,176.72,6.84]
[1729783325541,13.59180806,176.81,176.72,6.84]
[1729783325733,2.8319,176.71,176.68,6.84]
[1729783326039,13.59180806,176.77,176.68,6.84]
[1729783326239,2.832,176.71,176.68,6.84]
[1729783326739,12.5007,176.81,176.65,67.98]
[1729783326740,13.59763719,176.75,176.65,67.98]
[1729783326931,2.4445,176.74,176.65,6.84]
[1729783327336,2.8328,176.65,176.62,20.43763719]
[1729783327741,13.59763719,176.72,176.62,20.43763719]
[1729783328135,2.8326,176.67,176.62,9.6731]
[1729783328846,2.8327,176.66,176.62,9.6731]
[1729783329139,2.4445,176.74,176.65,2.8328]
[1729783329445,2.4445,176.74,176.64,21.76438554]
[1729783329839,2.832,176.71,176.67,2.8325]
[1729783330650,2.832,176.7,176.67,2.8325]
[1729783330939,2.4445,176.74,176.67,2.8325]
[1729783331242,2.4445,176.74,176.58,2.8525491]
[1729783331550,21.76438554,176.69,176.55,21.76438554]
[1729783331739,2.4253,176.68,176.55,21.76438554]
[1729783332643,21.76438554,176.67,176.56,6.84]
[1729783333044,2.8338,176.6,176.56,6.84]
[1729783334247,2.8338,176.59,176.56,6.84]
[1729783334741,2.3599,176.66,176.55,6.84]
[1729783334948,4.9017,176.66,176.55,6.84]
[1729783335146,2.8332,176.63,176.55,6.84]
[1729783335347,4.9017,176.66,176.55,6.84]
[1729783336345,2.8341,176.58,176.55,6.84]
[1729783336853,2.8332,176.63,176.55,6.84]
[1729783337152,4.9017,176.66,176.55,6.84]
[1729783337844,2.8341,176.57,176.55,6.84]
[1729783339043,2.8341,176.57,176.53,9.6747]
[1729783339247,4.9017,176.66,176.52,24.29568554]
[1729783339444,21.76438554,176.64,176.52,2.5313]
[1729783339651,21.76438554,176.61,176.51,6.84]
[1729783340145,2.8349,176.53,176.51,6.84]
[1729783340347,21.76438554,176.61,176.51,6.84]
[1729783340547,2.5236,176.6,176.46,29.62535404]
[1729783340751,27.43198554,176.59,176.46,33.60138554]
[1729783341256,9.4108,176.58,176.46,33.60138554]
[1729783341640,2.5269,176.57,176.46,33.60138554]
[1729783342144,2.5269,176.57,176.47,2.8355]
[1729783342343,2.5269,176.57,176.46,33.60138554]
[1729783343248,2.5269,176.57,176.47,2.8356]
[1729783343659,2.5269,176.57,176.46,33.60138554]
[1729783343850,2.8343,176.56,176.52,2.8348]
[1729783344045,2.5236,176.6,176.49,21.76438554]
[1729783344646,2.8345,176.55,176.49,21.76438554]
[1729783345252,2.8346,176.54,176.51,2.835]
[1729783346352,2.5236,176.6,176.46,33.60138554]
[1729783346557,21.76438554,176.59,176.46,33.60138554]
[1729783346743,21.76438554,176.56,176.46,6.86]
[1729783346949,4.7915,176.55,176.46,6.86]
[1729783347347,2.8354,176.49,176.46,9.6958]
[1729783347544,2.8354,176.49,176.43,24.23588554]
[1729783347755,2.8354,176.49,176.45,2.836]
[1729783347950,2.8354,176.49,176.44,6.52]
[1729783348152,4.7915,176.55,176.44,6.52]
[1729783348853,2.8357,176.47,176.44,6.52]
[1729783349055,4.7915,176.55,176.4,21.76438554]
[1729783349056,21.76438554,176.53,176.4,21.76438554]
[1729783349349,2.4412,176.52,176.41,6.52]
[1729783349556,2.8358,176.47,176.42,2.8364]
[1729783349756,2.8358,176.47,176.4,21.76438554]
[1729783349954,2.8358,176.47,176.42,6.52]
[1729783350161,2.4412,176.52,176.46,2.8358]
[1729783350357,2.4412,176.52,176.42,6.52]
[1729783350653,2.8355,176.49,176.45,2.8359]
[1729783350850,2.3292,176.58,176.48,21.76438554]
[1729783351051,28.28438554,176.62,176.48,28.28438554]
[1729783351250,2.3292,176.61,176.48,28.28438554]
[1729783351751,2.3292,176.61,176.49,2.4662]
[1729783351952,2.3292,176.61,176.51,21.76438554]
[1729783352157,24.09358554,176.61,176.49,24.23058554]
[1729783352557,2.3292,176.61,176.52,21.76438554]
[1729783352951,2.8339,176.59,176.53,2.8346]
[1729783353149,2.3292,176.61,176.53,2.8346]
[1729783353455,2.3292,176.61,176.52,21.76438554]
[1729783354157,2.8344,176.56,176.52,21.76438554]
[1729783354664,4.764,176.64,176.52,21.76438554]
[1729783355057,4.764,176.64,176.5,2.4955]
[1729783355562,4.764,176.64,176.49,24.23058554]
[1729783355766,21.76438554,176.62,176.49,24.23058554]
[1729783356449,11.284,176.64,176.52,21.76438554]
[1729783356653,4.764,176.64,176.52,21.76438554]
[1729783356860,2.8337,176.6,176.56,2.8343]
[1729783357065,2.8337,176.6,176.55,6.52]
[1729783357359,2.8338,176.59,176.55,9.3543]
[1729783357662,2.8338,176.59,176.55,6.52]
[1729783358060,2.8338,176.59,176.55,9.3544]
[1729783358260,2.8337,176.6,176.55,6.52]
[1729783358459,4.764,176.64,176.55,6.52]
[1729783358765,4.764,176.64,176.55,9.3544]
[1729783358963,4.764,176.64,176.55,6.52]
[1729783359351,2.8334,176.62,176.55,6.52]
[1729783359559,4.764,176.64,176.55,9.3544]
[1729783359857,4.764,176.64,176.49,2.4662]
[1729783359858,29.39384649,176.64,176.49,24.23058554]
[1729783360065,21.76438554,176.61,176.49,2.4662]
[1729783360255,21.76438554,176.58,176.48,61.2]
[1729783360555,2.8353,176.5,176.47,6.52]
[1729783360753,21.76438554,176.55,176.47,6.52]
[1729783360968,2.3761,176.54,176.47,6.52]
[1729783361156,2.3761,176.54,176.43,6.54]
[1729783361556,21.76438554,176.53,176.43,6.54]
[1729783361852,8.9161,176.54,176.39,66.5585]
[1729783362052,21.76438554,176.52,176.39,73.0985]
[1729783362765,2.8363,176.44,176.39,73.0985]
[1729783363062,21.76438554,176.49,176.38,6.54]
[1729783363261,2.4803,176.48,176.38,6.54]
[1729783363562,2.4803,176.48,176.4,2.8368]
[1729783363866,2.8359,176.46,176.38,28.30438554]
[1729783364462,2.8357,176.47,176.42,2.8364]
[1729783364663,21.76438554,176.52,176.38,28.30438554]
[1729783366655,2.8358,176.47,176.42,2.8364]
[1729783366856,2.8358,176.47,176.38,28.30438554]
[1729783367368,2.4803,176.53,176.43,21.76438554]
[1729783367568,2.4803,176.53,176.44,6.22]
[1729783367767,2.8351,176.51,176.45,2.836]
[1729783367969,2.4803,176.53,176.45,2.836]
[1729783368371,2.8349,176.52,176.48,2.8355]
[1729783369666,2.8349,176.52,176.46,21.76438554]
[1729783369865,2.8348,176.53,176.49,2.8353]
[1729783370068,2.4747,176.58,176.46,21.76438554]
[1729783370262,2.4747,176.58,176.49,27.98438554]
[1729783370465,2.8346,176.55,176.51,2.835]
[1729783370666,2.4267,176.61,176.49,27.98438554]
[1729783370877,2.4267,176.61,176.52,21.76438554]
[1729783371174,2.5494,176.62,176.52,21.76438554]
[1729783371371,2.5494,176.62,176.49,27.98438554]
[1729783371570,2.8345,176.55,176.51,2.835]
[1729783371963,2.5494,176.62,176.51,2.835]
[1729783371964,2.8346,176.54,176.51,2.835]
[1729783372160,2.5494,176.62,176.5,2.8352]
[1729783372365,21.76438554,176.6,176.51,6.22]
[1729783372568,2.8349,176.52,176.51,6.22]
[1729783372768,21.76438554,176.57,176.47,9.0557]
[1729783372964,21.76438554,176.57,176.47,6.22]
[1729783373169,2.8354,176.5,176.47,6.22]
[1729783373370,21.76438554,176.57,176.47,6.22]
[1729783375378,2.835,176.52,176.47,6.22]
[1729783375680,21.76438554,176.57,176.47,6.22]
[1729783375886,2.5295,176.58,176.47,6.22]
[1729783377186,2.8349,176.53,176.49,2.8354]
[1729783378780,2.5295,176.58,176.49,2.8354]
[1729783379386,2.8349,176.53,176.49,2.8354]
[1729783380089,2.5295,176.58,176.47,6.22]
[1729783380288,2.8351,176.51,176.47,9.0557]
[1729783381186,2.5295,176.58,176.47,9.0557]
[1729783381392,2.8352,176.5,176.47,9.0557]
[1729783381695,2.8352,176.5,176.48,2.8355]
[1729783382082,2.8351,176.51,176.48,2.8355]
[1729783382278,2.5295,176.58,176.51,2.835]
[1729783382483,2.8347,176.53,176.49,21.76438554]
[1729783383291,2.4772,176.59,176.49,21.76438554]
[1729783383494,27.43088554,176.63,176.47,6.22]
[1729783383495,2.8343,176.56,176.52,2.8349]
[1729783383690,2.8343,176.56,176.52,6.22]
[1729783384088,2.3084,176.63,176.52,6.22]
[1729783384294,2.3084,176.63,176.54,21.76438554]
[1729783384606,26.60688554,176.67,176.55,2.8344]
[1729783384894,21.76438554,176.65,176.52,6.22]
[1729783385096,6.22,176.64,176.52,6.22]
[1729783385283,2.8344,176.56,176.52,9.0548]
[1729783385589,6.22,176.64,176.52,9.0548]
[1729783387080,2.8344,176.56,176.52,9.0548]
[1729783387784,2.8344,176.55,176.52,6.22]
[1729783388191,2.8344,176.55,176.52,9.0549]
[1729783388589,6.22,176.64,176.52,6.22]
[1729783388795,21.76438554,176.62,176.49,5.9]
[1729783388994,6.22,176.64,176.49,5.9]
[1729783388995,21.76438554,176.59,176.49,5.9]
[1729783389196,2.8352,176.51,176.48,5.9]
[1729783389399,7.2668,176.58,176.48,5.9]
[1729783389600,7.2668,176.58,176.43,29.05448554]
[1729783389793,2.8356,176.48,176.44,8.736]
[1729783390785,21.76438554,176.56,176.45,2.8359]
[1729783391596,2.8355,176.49,176.45,2.8359]
[1729783392394,2.8357,176.48,176.46,5.9]
[1729783394502,21.76438554,176.56,176.46,5.9]
[1729783395304,2.8354,176.49,176.46,8.7358]
[1729783395601,21.76438554,176.56,176.46,5.9]
[1729783395791,2.8352,176.51,176.47,2.8356]
[1729783395991,7.2668,176.58,176.46,5.9]
[1729783396197,7.2668,176.58,176.46,27.66438554]
[1729783396404,7.2668,176.58,176.46,5.9]
[1729783397001,7.2668,176.58,176.46,8.7357]
[1729783397202,7.2668,176.58,176.46,5.9]
[1729783397598,2.835,176.52,176.48,2.8354]
[1729783398298,7.2668,176.58,176.48,2.8354]
[1729783398601,2.8351,176.51,176.48,2.8354]
[1729783400301,7.2668,176.58,176.46,5.9]
[1729783400511,21.76438554,176.56,176.46,5.9]
[1729783401802,21.76438554,176.56,176.44,2.8362]
[1729783402002,21.76438554,176.56,176.45,5.9]
[1729783402508,2.8359,176.47,176.45,5.9]
[1729783403794,24.53139613,176.56,176.45,5.9]
[1729783403996,2.8359,176.46,176.45,5.9]
[1729783404501,21.76438554,176.51,176.41,5.9]
[1729783404700,7.3558,176.5,176.41,5.9]
[1729783404908,2.8365,176.42,176.38,24.60148554]
[1729783405204,21.79799973,176.48,176.28,5.6774]
[1729783405399,21.79799973,176.46,176.32,21.79799973]
[1729783406107,21.79799973,176.46,176.35,2.8375]
[1729783406301,21.79799973,176.46,176.35,8.7375]
[1729783406699,2.8369,176.4,176.36,2.8374]
[1729783409411,2.8365,176.43,176.39,2.8369]
[1729783409708,5.6709,176.49,176.38,21.79799973]
[1729783410105,2.8365,176.43,176.39,2.8369]
[1729783410301,5.6709,176.49,176.39,2.8369]
[1729783410510,5.6709,176.49,176.35,5.9]
[1729783410511,2.8368,176.41,176.37,2.8372]
[1729783410717,27.46889973,176.49,176.35,27.69799973]
[1729783411010,21.79799973,176.46,176.35,27.69799973]
[1729783411207,2.837,176.4,176.36,2.8374]
[1729783411405,21.79799973,176.46,176.35,5.9]
[1729783411817,2.8369,176.4,176.36,2.8374]
[1729783412013,21.79799973,176.46,176.35,5.9]
[1729783412516,21.79799973,176.43,176.27,61.22]
[1729783412706,21.79799973,176.4,176.26,21.79799973]
[1729783412903,2.8386,176.3,176.27,5.9]
[1729783413107,5.9,176.39,176.27,5.9]
[1729783413504,2.8376,176.36,176.28,2.8387]
[1729783413704,5.9,176.39,176.28,2.8387]
[1729783414111,2.8382,176.32,176.28,2.8387]
[1729783414317,5.9,176.39,176.27,5.6]
[1729783415307,2.8382,176.32,176.28,2.8387]
[1729783415707,5.9,176.39,176.27,5.6]
[1729783416216,2.8383,176.31,176.27,8.4388]
[1729783417211,2.8381,176.33,176.28,2.8387]
[1729783417512,27.39799973,176.4,176.27,5.6]
[1729783417713,7.2606,176.42,176.28,21.79799973]
[1729783417918,7.2606,176.42,176.34,21.79799973]
[1729783418105,4.9288,176.42,176.34,27.39799973]
[1729783418311,21.79799973,176.51,176.37,21.79799973]
[1729783418514,7.9513,176.5,176.37,21.79799973]
[1729783419119,7.9513,176.5,176.34,27.39799973]
[1729783419319,2.837,176.39,176.35,2.8376]
[1729783419516,2.8298287,176.47,176.34,27.39799973]
[1729783419717,21.79799973,176.48,176.34,27.39799973]
[1729783421014,2.3513,176.5,176.37,21.79799973]
[1729783421315,5.6,176.49,176.37,21.79799973]
[1729783421714,2.8363,176.44,176.37,21.79799973]
[1729783422105,5.6,176.49,176.37,21.79799973]
[1729783422316,2.8364,176.43,176.39,2.8369]
[1729783422516,2.8364,176.43,176.39,8.4369]
[1729783423511,5.6,176.49,176.39,5.6]
[1729783423712,2.8368,176.41,176.39,5.6]
[1729783424512,27.39799973,176.49,176.39,5.6]
[1729783425013,2.8364,176.43,176.34,5.6]
[1729783425206,4.8954,176.42,176.34,5.6]
[1729783425411,7.3472,176.42,176.34,5.6]
[1729783425719,2.8373,176.38,176.34,8.4378]
[1729783427411,2.8369,176.4,176.36,2.8374]
[1729783428319,2.5456,176.42,176.34,27.39799973]
[1729783428517,2.837,176.39,176.35,2.8376]
[1729783429621,2.8364,176.43,176.39,2.8368]
[1729783429928,4.8662,176.47,176.37,21.79799973]
[1729783430117,2.8366,176.42,176.38,2.8371]
[1729783431217,2.3978,176.48,176.39,5.6]
[1729783431421,2.3978,176.48,176.42,2.8364]
[1729783431826,2.5162,176.52,176.4,21.79799973]
[1729783432119,4.914,176.52,176.4,21.79799973]
[1729783433323,2.836,176.46,176.42,2.8364]